fUSD/lending_fUSD_20251122
["ID","MTS","AMOUNT","RATE_DAILY","PERIOD"]
[394623473,1763794255607,-500.0,0.00016768,2]
[394623474,1763794255618,-534.74,0.00016768,2]
[394623475,1763794255630,-500.0,0.00016768,2]
[394623476,1763794255641,-1047.79,0.00016768,2]
[394623477,1763794255653,-500.0,0.00016768,2]
[394623478,1763794255666,-802.02,0.00016768,2]
[394623479,1763794255678,-500.0,0.00016768,2]
[394623480,1763794255690,-500.0,0.00016768,2]
[394623481,1763794255704,-814.17,0.00016768,2]
[394623482,1763794255716,-500.0,0.00016768,2]
[394623483,1763794255728,-666.7,0.00016768,2]
[394623484,1763794255739,-300.0,0.00016768,2]
[394623485,1763794255750,-1402.01,0.00016768,2]
[394623486,1763794255761,-500.0,0.00016768,2]
[394623487,1763794255773,-1916.11,0.00016768,2]
[394623488,1763794255784,-500.0,0.00016768,2]
[394623489,1763794255796,-907.53,0.00016768,2]
[394623490,1763794255807,-500.0,0.00016768,2]
[394623491,1763794255818,-500.0,0.00016768,2]
[394623492,1763794255829,-705.77,0.00016768,2]
[394623493,1763794255840,-500.0,0.00016768,2]
[394623494,1763794255851,-500.0,0.00016768,2]
[394623495,1763794255863,-500.0,0.00016768,2]
[394623496,1763794255874,-1105.66,0.00016768,2]
[394623497,1763794255885,-1057.01,0.00016768,2]
[394623498,1763794255896,-500.0,0.00016768,2]
[394623499,1763794255907,-500.0,0.00016768,2]
[394623500,1763794255919,-580.45198687,0.00016768,2]
[394623501,1763794255930,-599.31,0.00016768,2]
[394623502,1763794255942,-469.11182427,0.00016768,2]
[394623503,1763794255953,-377.9439423,0.00016768,2]
[394623504,1763794255964,-589.2,0.00016768,2]
[394623505,1763794255975,-6433.39,0.00016768,2]
[394623506,1763794255987,-758.41,0.00016768,2]
[394623507,1763794255998,-909.79,0.00016768,2]
[394623508,1763794256008,-500.0,0.00016768,2]
[394623509,1763794256020,-500.0,0.00016768,2]
[394623510,1763794256031,-500.0,0.00016768,2]
[394623511,1763794256042,-500.0,0.00016768,2]
[394623512,1763794256055,-3697.08,0.00016768,2]
[394623513,1763794256067,-500.0,0.00016768,2]
[394623514,1763794256079,-500.0,0.00016768,2]
[394623515,1763794256090,-500.0,0.00016768,2]
[394623516,1763794256101,-500.0,0.00016768,2]
[394623517,1763794256112,-500.0,0.00016768,2]
[394623518,1763794256124,-450.93296028,0.00016768,2]
[394623519,1763794256134,-500.0,0.00016768,2]
[394623520,1763794256146,-549.83894759,0.00016768,2]
[394623521,1763794256157,-500.0,0.00016768,2]
[394623522,1763794256168,-500.0,0.00016768,2]
[394623523,1763794256179,-378.44629074,0.00016768,2]
[394623524,1763794256190,-690.73,0.00016768,2]
[394623525,1763794256202,-500.0,0.00016768,2]
[394623526,1763794256213,-500.0,0.00016768,2]
[394623527,1763794256224,-820.04,0.00016768,2]
[394623528,1763794256235,-500.0,0.00016768,2]
[394623529,1763794256246,-377.95386735,0.00016768,2]
[394623530,1763794256257,-500.0,0.00016768,2]
[394623531,1763794256268,-764.99,0.00016768,2]
[394623532,1763794256279,-500.0,0.00016768,2]
[394623533,1763794256292,-505.65746021,0.00016768,2]
[394623534,1763794256305,-729.2,0.00016768,2]
[394623535,1763794256317,-500.0,0.00016768,2]
[394623536,1763794256327,-500.0,0.00016768,2]
[394623537,1763794256342,-1332.76,0.00016768,2]
[394623538,1763794256353,-500.0,0.00016768,2]
[394623539,1763794256364,-1693.15,0.00016768,2]
[394623540,1763794256376,-500.0,0.00016768,2]
[394623541,1763794256390,-500.0,0.00016768,2]
[394623542,1763794256400,-724.27,0.00016768,2]
[394623543,1763794256412,-500.0,0.00016768,2]
[394623544,1763794256424,-661.64,0.00016768,2]
[394623545,1763794256435,-500.0,0.00016768,2]
[394623546,1763794256447,-1089.6,0.00016768,2]
[394623547,1763794256460,-500.0,0.00016768,2]
[394623548,1763794256471,-500.0,0.00016768,2]
[394623549,1763794256482,-500.0,0.00016768,2]
[394623550,1763794256494,-500.0,0.00016768,2]
[394623551,1763794256505,-1061.0,0.00016768,2]
[394623552,1763794256516,-2087.83,0.00016768,2]
[394623553,1763794256528,-500.0,0.00016768,2]
[394623554,1763794256539,-500.0,0.00016768,2]
[394623555,1763794256551,-500.0,0.00016768,2]
[394623556,1763794256562,-500.0,0.00016768,2]
[394623557,1763794256572,-500.0,0.00016768,2]
[394623558,1763794256583,-500.0,0.00016768,2]
[394623559,1763794256596,-500.0,0.00016768,2]
[394623560,1763794256607,-500.0,0.00016768,2]
[394623561,1763794256617,-1998.05,0.00016768,2]
[394623562,1763794256629,-999.16,0.00016768,2]
[394623563,1763794256639,-500.0,0.00016768,2]
[394623564,1763794256650,-500.0,0.00016768,2]
[394623565,1763794256662,-500.0,0.00016768,2]
[394623566,1763794256673,-500.0,0.00016768,2]
[394623567,1763794256685,-774.83,0.00016768,2]
[394623568,1763794256701,-911.18,0.00016768,2]
[394623569,1763794257110,-721.64,0.00016768,2]
[394623570,1763794257134,-500.0,0.00016768,2]
[394623571,1763794257167,-630.75162881,0.00016768,2]
[394623572,1763794257187,-816.53,0.00016768,2]
[394623573,1763794257196,-500.0,0.00016768,2]
[394623574,1763794257205,-500.0,0.00016768,2]
[394623575,1763794257214,-500.0,0.00016768,2]
[394623576,1763794257224,-500.0,0.00016768,2]
[394623577,1763794257233,-500.0,0.00016768,2]
[394623578,1763794257242,-676.94,0.00016768,2]
[394623579,1763794257252,-639.51,0.00016768,2]
[394623580,1763794257262,-500.0,0.00016768,2]
[394623581,1763794257272,-501.4498422,0.00016768,2]
[394623582,1763794257281,-500.0,0.00016768,2]
[394623583,1763794257290,-1774.53,0.00016768,2]
[394623584,1763794257299,-821.7,0.00016768,2]
[394623585,1763794257308,-500.0,0.00016768,2]
[394623586,1763794257317,-500.0,0.00016768,2]
[394623587,1763794257327,-500.0,0.00016768,2]
[394623588,1763794257337,-500.0,0.00016768,2]
[394623589,1763794257347,-500.0,0.00016768,2]
[394623590,1763794257356,-500.0,0.00016768,2]
[394623591,1763794257366,-500.0,0.00016768,2]
[394623592,1763794257375,-500.0,0.00016768,2]
[394623593,1763794257384,-500.0,0.00016768,2]
[394623594,1763794257395,-500.0,0.00016768,2]
[394623595,1763794257405,-500.0,0.00016768,2]
[394623596,1763794257415,-527.06,0.00016768,2]
[394623597,1763794257424,-500.0,0.00016768,2]
[394623598,1763794257434,-500.0,0.00016768,2]
[394623599,1763794257443,-500.0,0.00016768,2]
[394623600,1763794257454,-500.0,0.00016768,2]
[394623601,1763794257465,-500.0,0.00016768,2]
[394623602,1763794257475,-500.0,0.00016768,2]
[394623603,1763794257484,-940.49,0.00016768,2]
[394623604,1763794257494,-500.0,0.00016768,2]
[394623605,1763794257504,-1420.62,0.00016768,2]
[394623606,1763794257513,-500.0,0.00016768,2]
[394623607,1763794257522,-500.0,0.00016768,2]
[394623608,1763794257532,-1114.19,0.00016768,2]
[394623609,1763794257541,-720.27,0.00016768,2]
[394623610,1763794257550,-500.0,0.00016768,2]
[394623611,1763794257560,-773.17,0.00016768,2]
[394623612,1763794257569,-1255.59,0.00016768,2]
[394623613,1763794257578,-2960.27,0.00016768,2]
[394623614,1763794257587,-540.04,0.00016768,2]
[394623615,1763794257596,-500.0,0.00016768,2]
[394623616,1763794257605,-500.0,0.00016768,2]
[394623617,1763794257615,-505.93,0.00016768,2]
[394623618,1763794257624,-500.0,0.00016768,2]
[394623619,1763794257634,-500.0,0.00016768,2]
[394623620,1763794257645,-623.38,0.00016768,2]
[394623621,1763794257656,-500.0,0.00016768,2]
[394623622,1763794257665,-500.0,0.00016768,2]
[394623623,1763794257674,-415.13184624,0.00016768,2]
[394623624,1763794257684,-152.04226331,0.00016768,2]
[394623625,1763794257695,-708.93,0.00016768,2]
[394623626,1763794257708,-500.0,0.00016768,2]
[394623627,1763794257717,-500.0,0.00016768,2]
[394623628,1763794257726,-1425.11,0.00016768,2]
[394623629,1763794257736,-395.24308149,0.00016768,2]
[394623630,1763794257746,-500.0,0.00016768,2]
[394623631,1763794257756,-9324.48,0.00016768,2]
[394623632,1763794257766,-500.0,0.00016768,2]
[394623633,1763794257778,-275.96224947,0.00016768,2]
[394623634,1763794257787,-622.99,0.00016768,2]
[394623635,1763794257797,-500.0,0.00016768,2]
[394623636,1763794257806,-605.46,0.00016768,2]
[394623637,1763794257815,-573.25,0.00016768,2]
[394623638,1763794257825,-2271.9,0.00016768,2]
[394623639,1763794257834,-500.0,0.00016768,2]
[394623640,1763794257843,-500.0,0.00016768,2]
[394623641,1763794257853,-500.0,0.00016768,2]
[394623642,1763794257862,-500.0,0.00016768,2]
[394623643,1763794257872,-500.0,0.00016768,2]
[394623644,1763794257881,-500.0,0.00016768,2]
[394623645,1763794257891,-746.28,0.00016768,2]
[394623646,1763794257901,-1002.15,0.00016768,2]
[394623647,1763794257911,-500.0,0.00016768,2]
[394623648,1763794257921,-500.0,0.00016768,2]
[394623649,1763794257930,-619.08,0.00016768,2]
[394623650,1763794257941,-465.26678322,0.00016768,2]
[394623651,1763794257950,-500.0,0.00016768,2]
[394623652,1763794257960,-500.0,0.00016768,2]
[394623653,1763794257970,-500.0,0.00016768,2]
[394623654,1763794257979,-910.54,0.00016768,2]
[394623655,1763794257989,-408.60324516,0.00016768,2]
[394623656,1763794257999,-808.01,0.00016768,2]
[394623657,1763794258010,-500.0,0.00016768,2]
[394623658,1763794258020,-500.0,0.00016768,2]
[394623659,1763794258029,-949.94,0.00016768,2]
[394623660,1763794258039,-221.43,0.00016768,2]
[394623661,1763794258048,-500.0,0.00016768,2]
[394623662,1763794258058,-430.81400455,0.00016768,2]
[394623663,1763794258067,-1460.62,0.00016768,2]
[394623664,1763794258076,-500.0,0.00016768,2]
[394623665,1763794258086,-500.0,0.00016768,2]
[394623666,1763794258097,-500.0,0.00016768,2]
[394623667,1763794258106,-2411.74,0.00016768,2]
[394623668,1763794258116,-962.7,0.00016768,2]
[394623669,1763794258125,-500.0,0.00016768,2]
[394623670,1763794258135,-1266.65,0.00016768,2]
[394623671,1763794258145,-941.66,0.00016768,2]
[394623672,1763794258156,-500.0,0.00016768,2]
[394623673,1763794258165,-2931.63,0.00016768,2]
[394623674,1763794258175,-500.0,0.00016768,2]
[394623675,1763794258184,-500.0,0.00016768,2]
[394623676,1763794258193,-500.0,0.00016768,2]
[394623677,1763794258203,-776.87,0.00016768,2]
[394623678,1763794258212,-500.0,0.00016768,2]
[394623679,1763794258222,-500.0,0.00016768,2]
[394623680,1763794258231,-1142.36,0.00016768,2]
[394623681,1763794258241,-1035.48,0.00016768,2]
[394623682,1763794258250,-500.0,0.00016768,2]
[394623683,1763794258260,-500.0,0.00016768,2]
[394623684,1763794258269,-1398.84,0.00016768,2]
[394623685,1763794258279,-605.15,0.00016768,2]
[394623686,1763794258288,-500.0,0.00016768,2]
[394623687,1763794258297,-500.0,0.00016768,2]
[394623688,1763794258307,-500.0,0.00016768,2]
[394623689,1763794258316,-1015.35,0.00016768,2]
[394623690,1763794258326,-600.0,0.00016769,2]
[394623691,1763794258337,-166.66,0.00016776,2]
[394623692,1763794258349,-171.78131342,0.00016867,2]
[394623693,1763794258359,-500.0,0.00016868,2]
[394623694,1763794258369,-500.0,0.00016868,2]
[394623695,1763794258378,-500.0,0.00016868,2]
[394623696,1763794258387,-500.0,0.00016868,2]
[394623697,1763794258397,-454.74430808,0.00016868,2]
[394623698,1763794258406,-500.0,0.00016868,2]
[394623699,1763794258415,-500.0,0.00016868,2]
[394623700,1763794258425,-154.06177399,0.00016868,2]
[394623701,1763794258434,-500.0,0.00016868,2]
[394623702,1763794258444,-500.0,0.00016868,2]
[394623703,1763794258454,-500.0,0.00016868,2]
[394623704,1763794258463,-500.0,0.00016868,2]
[394623705,1763794258473,-500.0,0.00016868,2]
[394623706,1763794258483,-500.0,0.00016868,2]
[394623707,1763794258493,-500.0,0.00016868,2]
[394623708,1763794258502,-500.0,0.00016868,2]
[394623709,1763794258512,-500.0,0.00016868,2]
[394623710,1763794258521,-500.0,0.00016868,2]
[394623711,1763794258531,-500.0,0.00016868,2]
[394623712,1763794258540,-500.0,0.00016868,2]
[394623713,1763794258550,-461.6913957,0.00016868,2]
[394623714,1763794258559,-517.08445626,0.00016868,2]
[394623715,1763794258568,-500.0,0.00016868,2]
[394623716,1763794258577,-500.0,0.00016868,2]
[394623717,1763794258587,-500.0,0.00016868,2]
[394623718,1763794258596,-500.0,0.00016868,2]
[394623719,1763794258606,-329.15267384,0.00016868,2]
[394623720,1763794258615,-500.0,0.00016868,2]
[394623721,1763794258624,-500.0,0.00016868,2]
[394623722,1763794258634,-500.0,0.00016868,2]
[394623723,1763794258643,-500.0,0.00016868,2]
[394623724,1763794258652,-500.0,0.00016868,2]
[394623725,1763794258663,-917.02,0.00016868,2]
[394623726,1763794258672,-500.0,0.00016868,2]
[394623727,1763794258681,-500.0,0.00016868,2]
[394623728,1763794258691,-500.0,0.00016868,2]
[394623729,1763794258705,-500.0,0.00016868,2]
[394623730,1763794258715,-500.0,0.00016868,2]
[394623731,1763794258724,-500.0,0.00016868,2]
[394623732,1763794258735,-500.0,0.00016868,2]
[394623733,1763794258747,-500.0,0.00016868,2]
[394623734,1763794258756,-500.0,0.00016868,2]
[394623735,1763794258766,-500.0,0.00016868,2]
[394623736,1763794258778,-500.0,0.00016868,2]
[394623737,1763794258787,-321.89065832,0.00016868,2]
[394623738,1763794258797,-500.0,0.00016868,2]
[394623739,1763794258807,-500.0,0.00016868,2]
[394623740,1763794258819,-417.96,0.00016868,2]
[394623741,1763794258828,-623.26,0.00016868,2]
[394623742,1763794258837,-500.0,0.00016868,2]
[394623743,1763794258847,-990.14,0.00016868,2]
[394623744,1763794258856,-398.74210172,0.00016868,2]
[394623745,1763794258866,-500.0,0.00016868,2]
[394623746,1763794258875,-500.0,0.00016868,2]
[394623747,1763794258884,-500.0,0.00016868,2]
[394623748,1763794258894,-500.0,0.00016868,2]
[394623749,1763794258903,-617.51,0.00016868,2]
[394623750,1763794258913,-500.0,0.00016868,2]
[394623751,1763794258923,-500.0,0.00016868,2]
[394623752,1763794258932,-670.95,0.00016868,2]
[394623753,1763794258942,-500.0,0.00016868,2]
[394623754,1763794258951,-500.0,0.00016868,2]
[394623755,1763794258960,-1325.82,0.00016868,2]
[394623756,1763794258970,-500.0,0.00016868,2]
[394623757,1763794258979,-500.0,0.00016868,2]
[394623758,1763794258989,-500.0,0.00016868,2]
[394623759,1763794258998,-500.0,0.00016868,2]
[394623760,1763794259008,-500.0,0.00016868,2]
[394623761,1763794259017,-500.0,0.00016868,2]
[394623762,1763794259026,-500.0,0.00016868,2]
[394623763,1763794259035,-500.0,0.00016868,2]
[394623764,1763794259045,-500.0,0.00016868,2]
[394623765,1763794259055,-500.0,0.00016868,2]
[394623766,1763794259064,-500.0,0.00016868,2]
[394623767,1763794259074,-500.0,0.00016868,2]
[394623768,1763794259083,-500.0,0.00016868,2]
[394623769,1763794259092,-500.0,0.00016868,2]
[394623770,1763794259102,-684.3,0.00016868,2]
[394623771,1763794259111,-180.63703773,0.00016868,2]
[394623772,1763794259121,-500.0,0.00016868,2]
[394623773,1763794259130,-429.38109159,0.00016868,2]
[394623774,1763794259139,-419.73583391,0.00016868,2]
[394623775,1763794259149,-500.0,0.00016868,2]
[394623776,1763794259158,-994.85,0.00016868,2]
[394623777,1763794259168,-500.0,0.00016868,2]
[394623778,1763794259178,-500.0,0.00016868,2]
[394623779,1763794259187,-542.72980789,0.00016868,2]
[394623780,1763794259196,-500.0,0.00016868,2]
[394623781,1763794259206,-500.0,0.00016868,2]
[394623782,1763794259215,-1062.45,0.00016868,2]
[394623783,1763794259224,-500.0,0.00016868,2]
[394623784,1763794259234,-1137.55,0.00016868,2]
[394623785,1763794259244,-500.0,0.00016868,2]
[394623786,1763794259253,-500.0,0.00016868,2]
[394623787,1763794259262,-500.0,0.00016868,2]
[394623788,1763794259271,-500.0,0.00016868,2]
[394623789,1763794259281,-500.0,0.00016868,2]
[394623790,1763794259290,-500.0,0.00016868,2]
[394623791,1763794259300,-500.0,0.00016868,2]
[394623792,1763794259309,-821.25,0.00016868,2]
[394623793,1763794259318,-500.0,0.00016868,2]
[394623794,1763794259328,-500.0,0.00016868,2]
[394623795,1763794259337,-152.18702685,0.00016868,2]
[394623796,1763794259347,-500.0,0.00016868,2]
[394623797,1763794259356,-855.02,0.00016868,2]
[394623798,1763794259366,-1415.43,0.00016868,2]
[394623799,1763794259375,-5623.36,0.00016868,2]
[394623800,1763794259385,-500.0,0.00016868,2]
[394623801,1763794259394,-500.0,0.00016868,2]
[394623802,1763794259403,-884.51,0.00016868,2]
[394623803,1763794259413,-526.96,0.00016868,2]
[394623804,1763794259422,-500.0,0.00016868,2]
[394623805,1763794259432,-1319.87,0.00016868,2]
[394623806,1763794259441,-872.46,0.00016868,2]
[394623807,1763794259450,-757.09,0.00016868,2]
[394623808,1763794259459,-500.0,0.00016868,2]
[394623809,1763794259468,-500.0,0.00016868,2]
[394623810,1763794259478,-500.0,0.00016868,2]
[394623811,1763794259487,-726.68,0.00016868,2]
[394623812,1763794259496,-500.0,0.00016868,2]
[394623813,1763794259505,-500.0,0.00016868,2]
[394623814,1763794259515,-500.0,0.00016868,2]
[394623815,1763794259525,-826.25,0.00016868,2]
[394623816,1763794259534,-721.49,0.00016868,2]
[394623817,1763794259543,-500.0,0.00016868,2]
[394623818,1763794259556,-500.0,0.00016868,2]
[394623819,1763794259565,-1301.34,0.00016868,2]
[394623820,1763794259575,-500.0,0.00016868,2]
[394623821,1763794259584,-784.78,0.00016868,2]
[394623822,1763794259593,-500.0,0.00016868,2]
[394623823,1763794259602,-584.4,0.00016868,2]
[394623824,1763794259611,-500.0,0.00016868,2]
[394623825,1763794259620,-422.73107915,0.00016868,2]
[394623826,1763794259629,-500.0,0.00016868,2]
[394623827,1763794259639,-500.0,0.00016868,2]
[394623828,1763794259648,-609.70781548,0.00016868,2]
[394623829,1763794259658,-500.0,0.00016868,2]
[394623830,1763794259667,-500.0,0.00016868,2]
[394623831,1763794259677,-513.34935857,0.00016868,2]
[394623832,1763794259686,-581.37,0.00016868,2]
[394623833,1763794259697,-500.0,0.00016868,2]
[394623834,1763794259708,-412.47846423,0.00016868,2]
[394623835,1763794259717,-500.0,0.00016868,2]
[394623836,1763794259726,-947.47,0.00016868,2]
[394623837,1763794259736,-500.0,0.00016868,2]
[394623838,1763794259747,-500.0,0.00016868,2]
[394623839,1763794259756,-500.0,0.00016868,2]
[394623840,1763794259765,-500.0,0.00016868,2]
[394623841,1763794259775,-500.0,0.00016868,2]
[394623842,1763794259786,-674.59,0.00016868,2]
[394623843,1763794259795,-555.18704775,0.00016868,2]
[394623844,1763794259804,-643.11955397,0.00016868,2]
[394623845,1763794259814,-1579.97,0.00016868,2]
[394623846,1763794259823,-1060.3,0.00016868,2]
[394623847,1763794259832,-500.0,0.00016868,2]
[394623848,1763794259841,-446.08357086,0.00016868,2]
[394623849,1763794259851,-500.0,0.00016868,2]
[394623850,1763794259860,-500.0,0.00016868,2]
[394623851,1763794259869,-500.0,0.00016868,2]
[394623852,1763794259878,-500.0,0.00016868,2]
[394623853,1763794259887,-500.0,0.00016868,2]
[394623854,1763794259896,-500.0,0.00016868,2]
[394623855,1763794259906,-500.0,0.00016868,2]
[394623856,1763794259915,-500.0,0.00016868,2]
[394623857,1763794259924,-415.5741458,0.00016868,2]
[394623858,1763794259934,-500.0,0.00016868,2]
[394623859,1763794259943,-500.0,0.00016868,2]
[394623860,1763794259953,-865.18,0.00016868,2]
[394623861,1763794259963,-500.0,0.00016868,2]
[394623862,1763794259972,-500.0,0.00016868,2]
[394623863,1763794259982,-575.52,0.00016868,2]
[394623864,1763794259992,-500.0,0.00016868,2]
[394623865,1763794260156,-500.0,0.00016868,2]
[394623866,1763794260197,-419.96479887,0.00016868,2]
[394623867,1763794260207,-500.0,0.00016868,2]
[394623868,1763794260216,-500.0,0.00016868,2]
[394623869,1763794260226,-500.0,0.00016868,2]
[394623870,1763794260236,-500.0,0.00016868,2]
[394623871,1763794260245,-528.7,0.00016868,2]
[394623872,1763794260255,-500.0,0.00016868,2]
[394623873,1763794260264,-500.0,0.00016868,2]
[394623874,1763794260274,-500.0,0.00016868,2]
[394623875,1763794260283,-500.0,0.00016868,2]
[394623876,1763794260292,-500.0,0.00016868,2]
[394623877,1763794260303,-896.21,0.00016868,2]
[394623878,1763794260312,-500.0,0.00016868,2]
[394623879,1763794260322,-500.0,0.00016868,2]
[394623880,1763794260331,-500.0,0.00016868,2]
[394623881,1763794260341,-790.19,0.00016868,2]
[394623882,1763794260350,-602.17188519,0.00016868,2]
[394623883,1763794260360,-337.77100358,0.00016868,2]
[394623884,1763794260369,-500.0,0.00016868,2]
[394623885,1763794260378,-500.0,0.00016868,2]
[394623886,1763794260387,-820.59,0.00016868,2]
[394623887,1763794260397,-500.0,0.00016868,2]
[394623888,1763794260407,-936.12,0.00016868,2]
[394623889,1763794260417,-500.0,0.00016868,2]
[394623890,1763794260427,-500.0,0.00016868,2]
[394623891,1763794260436,-500.0,0.00016868,2]
[394623892,1763794260446,-540.3452387,0.00016868,2]
[394623893,1763794260457,-404.33337585,0.00016868,2]
[394623894,1763794260467,-500.0,0.00016868,2]
[394623895,1763794260478,-615.24591325,0.00016868,2]
[394623896,1763794260489,-500.0,0.00016868,2]
[394623897,1763794260499,-1329.45,0.00016868,2]
[394623898,1763794260510,-500.0,0.00016868,2]
[394623899,1763794260519,-960.94,0.00016868,2]
[394623900,1763794260528,-500.0,0.00016868,2]
[394623901,1763794260537,-500.0,0.00016868,2]
[394623902,1763794260546,-500.0,0.00016868,2]
[394623903,1763794260556,-500.0,0.00016868,2]
[394623904,1763794260565,-152.77981932,0.00016868,2]
[394623905,1763794260574,-500.0,0.00016868,2]
[394623906,1763794260584,-726.73,0.00016868,2]
[394623907,1763794260593,-500.0,0.00016868,2]
[394623908,1763794260603,-300.0,0.00016868,2]
[394623909,1763794260613,-336.06,0.00016868,2]
[394623910,1763794260622,-700.95,0.00016868,2]
[394623911,1763794260632,-497.94574821,0.00016868,2]
[394623912,1763794260641,-1454.79,0.00016868,2]
[394623913,1763794260651,-500.0,0.00016868,2]
[394623914,1763794260664,-425.30259703,0.00016868,2]
[394623915,1763794260673,-574.00069301,0.00016868,2]
[394623916,1763794260683,-301.31414032,0.00016868,2]
[394623917,1763794260693,-938.13,0.00016868,2]
[394623918,1763794260706,-500.0,0.00016868,2]
[394623919,1763794260716,-500.0,0.00016868,2]
[394623920,1763794260725,-500.0,0.00016868,2]
[394623921,1763794260735,-500.0,0.00016868,2]
[394623922,1763794260746,-576.3,0.00016868,2]
[394623923,1763794260756,-548.08959075,0.00016868,2]
[394623924,1763794260765,-500.0,0.00016868,2]
[394623925,1763794260775,-500.0,0.00016868,2]
[394623926,1763794260785,-500.0,0.00016868,2]
[394623927,1763794260794,-636.13,0.00016868,2]
[394623928,1763794260803,-500.0,0.00016868,2]
[394623929,1763794260813,-500.0,0.00016868,2]
[394623930,1763794260822,-500.0,0.00016868,2]
[394623931,1763794260831,-1474.78,0.00016868,2]
[394623932,1763794260840,-525.60980687,0.00016868,2]
[394623933,1763794260849,-500.0,0.00016868,2]
[394623934,1763794260860,-500.0,0.00016868,2]
[394623935,1763794260869,-500.0,0.00016868,2]
[394623936,1763794260879,-500.0,0.00016868,2]
[394623937,1763794260888,-500.0,0.00016868,2]
[394623938,1763794260899,-957.78,0.00016868,2]
[394623939,1763794260912,-500.0,0.00016868,2]
[394623940,1763794260922,-500.0,0.00016868,2]
[394623941,1763794260931,-500.0,0.00016868,2]
[394623942,1763794260940,-500.0,0.00016868,2]
[394623943,1763794260950,-500.0,0.00016868,2]
[394623944,1763794260959,-500.0,0.00016868,2]
[394623945,1763794260968,-500.0,0.00016868,2]
[394623946,1763794260978,-500.0,0.00016868,2]
[394623947,1763794260987,-553.96,0.00016868,2]
[394623948,1763794260997,-1094.96,0.00016868,2]
[394623949,1763794261007,-616.77,0.00016868,2]
[394623950,1763794261017,-694.87,0.00016868,2]
[394623951,1763794261027,-873.97,0.00016868,2]
[394623952,1763794261036,-500.0,0.00016868,2]
[394623953,1763794261047,-905.9,0.00016868,2]
[394623954,1763794261056,-500.0,0.00016868,2]
[394623955,1763794261065,-407.39891198,0.00016868,2]
[394623956,1763794261075,-698.17,0.00016868,2]
[394623957,1763794261084,-500.0,0.00016868,2]
[394623958,1763794261094,-500.0,0.00016868,2]
[394623959,1763794261103,-618.0,0.00016868,2]
[394623960,1763794261113,-500.0,0.00016868,2]
[394623961,1763794261122,-500.0,0.00016868,5]
[394623962,1763794261131,-500.0,0.00016868,2]
[394623963,1763794261141,-500.0,0.00016868,2]
[394623964,1763794261150,-563.02,0.00016868,2]
[394623965,1763794261160,-707.82,0.00016868,2]
[394623966,1763794261170,-500.0,0.00016868,2]
[394623967,1763794261179,-622.83443556,0.00016868,2]
[394623968,1763794261188,-500.0,0.00016868,2]
[394623969,1763794261198,-1288.85,0.00016868,2]
[394623970,1763794261207,-500.0,0.00016868,2]
[394623971,1763794261216,-500.0,0.00016868,2]
[394623972,1763794261226,-500.0,0.00016868,2]